fUST/lending_fUST_20250717
["ID","MTS","AMOUNT","RATE_DAILY","PERIOD"]
[372794453,1752765050160,-487.99,0.00018162,2]
[372794456,1752765050170,-460.0,0.00018162,2]
[372794458,1752765050179,-460.0,0.00018162,2]
[372794460,1752765050189,-460.0,0.00018162,2]
[372794461,1752765050198,-460.0,0.00018162,2]
[372794462,1752765050212,-460.0,0.00018162,2]
[372794463,1752765050221,-460.0,0.00018162,2]
[372794464,1752765050230,-477.15,0.00018162,2]
[372794465,1752765050239,-1290.34,0.00018162,2]
[372794466,1752765050248,-460.0,0.00018162,2]
[372794467,1752765050257,-460.0,0.00018162,2]
[372794468,1752765050266,-1366.78,0.00018162,2]
[372794469,1752765050275,-460.0,0.00018162,2]
[372794470,1752765050284,-460.0,0.00018162,2]
[372794471,1752765050293,-460.0,0.00018162,2]
[372794472,1752765050302,-460.0,0.00018162,2]
[372794473,1752765050311,-1222.62,0.00018162,2]
[372794474,1752765050320,-486.5,0.00018162,2]
[372794475,1752765050329,-460.0,0.00018162,2]
[372794476,1752765050338,-460.0,0.00018162,2]
[372794477,1752765050347,-460.0,0.00018162,2]
[372794478,1752765050356,-460.0,0.00018162,2]
[372794479,1752765050365,-664.98,0.00018162,2]
[372794484,1752765050478,-460.0,0.00018163,2]
[372794486,1752765050488,-460.0,0.00018163,2]
[372794488,1752765050497,-460.0,0.00018163,2]
[372794490,1752765050508,-460.0,0.00018163,2]
[372794492,1752765050517,-465.14445071,0.00018163,2]
[372794494,1752765050526,-460.0,0.00018163,2]
[372794496,1752765050537,-460.0,0.00018163,2]
[372794498,1752765050548,-460.0,0.00018163,2]
[372794500,1752765050558,-460.0,0.00018163,2]
[372794502,1752765050567,-4279.38,0.00018163,2]
[372794504,1752765050577,-535.1115719,0.00018163,2]
[372794506,1752765050586,-460.0,0.00018163,2]
[372794508,1752765050596,-1326.6,0.00018163,2]
[372794510,1752765050606,-460.0,0.00018163,2]
[372794512,1752765050616,-460.0,0.00018163,2]
[372794514,1752765050626,-460.0,0.00018163,2]
[372794516,1752765050635,-460.0,0.00018163,2]
[372794518,1752765050645,-460.0,0.00018164,2]
[372794520,1752765050654,-460.0,0.00018164,2]
[372794522,1752765050664,-460.0,0.00018164,2]
[372794524,1752765050674,-460.0,0.00018164,2]
[372794526,1752765050684,-460.0,0.00018164,2]
[372794528,1752765050693,-460.0,0.00018164,2]
[372794530,1752765050704,-602.6,0.00018164,2]
[372794532,1752765050714,-428.53,0.00018164,2]
[372794534,1752765050724,-460.0,0.00018164,2]
[372794536,1752765050734,-460.0,0.00018164,2]
[372794538,1752765050743,-3110.26,0.00018164,2]
[372794540,1752765050752,-460.0,0.00018164,2]
[372794542,1752765050762,-460.0,0.00018164,2]
[372794544,1752765050770,-495.25,0.00018165,2]
[372794546,1752765050780,-460.0,0.00018165,2]
[372794548,1752765050789,-1328.67,0.00018165,2]
[372794550,1752765050798,-2293.05,0.00018165,2]
[372794551,1752765050808,-460.0,0.00018165,2]
[372794553,1752765050817,-2090.37,0.00018165,2]
[372794556,1752765050827,-1246.01,0.00018165,2]
[372794557,1752765050836,-406.76671776,0.00018166,2]
[372794559,1752765050845,-460.0,0.00018166,2]
[372794561,1752765050854,-460.0,0.00018166,2]
[372794563,1752765050863,-460.0,0.00018166,2]
[372794565,1752765050873,-460.0,0.00018166,2]
[372794567,1752765050884,-460.0,0.00018166,2]
[372794569,1752765050893,-460.0,0.00018166,2]
[372794571,1752765050902,-460.0,0.00018166,2]
[372794573,1752765050911,-460.0,0.00018166,2]
[372794575,1752765050920,-460.0,0.00018166,2]
[372794577,1752765050929,-460.0,0.00018166,2]
[372794579,1752765050938,-460.0,0.00018166,2]
[372794581,1752765050947,-460.0,0.00018166,2]
[372794583,1752765050959,-460.0,0.00018166,2]
[372794585,1752765050978,-460.0,0.00018166,2]
[372794587,1752765050994,-460.0,0.00018166,2]
[372794589,1752765051003,-460.0,0.00018166,2]
[372794591,1752765051013,-601.76031898,0.00018166,2]
[372794593,1752765051023,-460.0,0.00018166,2]
[372794595,1752765051032,-506.71084703,0.00018166,2]
[372794597,1752765051042,-460.0,0.00018166,2]
[372794599,1752765051052,-1000.0,0.00018168,2]
[372794601,1752765051061,-512.98621668,0.00018168,2]
[372794603,1752765051072,-504.73741654,0.00018168,2]
[372794605,1752765051082,-1500.0,0.00018168,2]
[372794607,1752765051096,-1525.15971395,0.00018168,2]
[372794609,1752765051106,-8833.26437907,0.0001821,2]
[372794611,1752765051115,-522.01,0.00018247,2]
[372794613,1752765051125,-260.0,0.00018338,2]
[372794615,1752765051135,-160.0,0.00018375,2]
[372794618,1752765051145,-160.0,0.00018375,2]
[372794619,1752765051154,-160.0,0.00018375,2]
[372794622,1752765051163,-160.0,0.00018375,2]
[372794624,1752765051173,-160.0,0.00018375,2]
[372794625,1752765051182,-476.16111942,0.00018375,2]
[372794628,1752765051192,-160.0,0.00018375,2]
[372794630,1752765051201,-525.67742785,0.00018375,2]
[372794632,1752765051213,-160.0,0.00018375,2]
[372794633,1752765051222,-12607.95677342,0.00018375,2]
[372794636,1752765051232,-160.0,0.00018375,2]
[372794638,1752765051241,-160.0,0.00018375,2]
[372794640,1752765051251,-160.0,0.00018375,2]
[372794642,1752765051261,-839.15451687,0.00018375,2]
[372794644,1752765051270,-214.44804168,0.00018375,2]
[372794646,1752765051280,-230.85589339,0.00018375,2]
[372794648,1752765051290,-215.59244943,0.00018375,2]
[372794650,1752765051299,-460.0,0.00018436,2]
[372794652,1752765051309,-573.18,0.00018436,2]
[372794654,1752765051319,-460.0,0.00018436,2]
[372794656,1752765051328,-460.0,0.00018436,2]
[372794658,1752765051338,-465.95500676,0.00018436,2]
[372794660,1752765051347,-460.0,0.00018436,2]
[372794662,1752765051357,-460.0,0.00018436,2]
[372794664,1752765051367,-3565.14,0.00018436,2]
[372794666,1752765051376,-460.0,0.00018436,2]
[372794668,1752765051385,-460.0,0.00018436,2]
[372794670,1752765051395,-460.0,0.00018436,2]
[372794672,1752765051404,-460.0,0.00018436,2]
[372794674,1752765051414,-494.71,0.00018436,2]
[372794676,1752765051423,-460.0,0.00018436,2]
[372794677,1752765051432,-460.0,0.00018436,2]
[372794680,1752765051442,-460.0,0.00018436,2]
[372794681,1752765051451,-460.0,0.00018436,2]
[372794683,1752765051462,-2523.44,0.00018436,2]
[372794686,1752765051472,-460.0,0.00018436,2]
[372794688,1752765051482,-460.0,0.00018436,2]
[372794690,1752765051491,-460.0,0.00018436,2]
[372794691,1752765051502,-1798.7,0.00018436,2]
[372794693,1752765051512,-626.96,0.00018436,2]
[372794695,1752765051522,-460.0,0.00018436,2]
[372794697,1752765051533,-460.0,0.00018436,2]
[372794699,1752765051543,-460.0,0.00018436,2]
[372794701,1752765051554,-335.96,0.00018436,2]
[372794703,1752765051569,-460.0,0.00018436,2]
[372794705,1752765051578,-1969.0,0.00018436,2]
[372794707,1752765051588,-487.99,0.00018436,2]
[372794709,1752765051597,-460.0,0.00018436,2]
[372794712,1752765051607,-460.0,0.00018436,2]
[372794713,1752765051618,-460.0,0.00018436,2]
[372794716,1752765051632,-460.0,0.00018436,2]
[372794717,1752765051641,-460.0,0.00018436,2]
[372794719,1752765051651,-460.0,0.00018436,2]
[372794721,1752765051661,-1290.34,0.00018436,2]
[372794723,1752765051670,-460.0,0.00018436,2]
[372794725,1752765051680,-460.0,0.00018436,2]
[372794728,1752765051690,-1366.78,0.00018436,2]
[372794729,1752765051699,-160.84955277,0.00018436,2]
[372794732,1752765051711,-460.0,0.00018436,2]
[372794733,1752765051720,-185.76245554,0.00018436,2]
[372794735,1752765051730,-460.0,0.00018436,2]
[372794737,1752765051739,-1222.62,0.00018436,2]
[372794739,1752765051749,-460.0,0.00018436,2]
[372794742,1752765051759,-460.0,0.00018436,2]
[372794744,1752765051769,-460.0,0.00018436,2]
[372794746,1752765051778,-460.0,0.00018436,2]
[372794748,1752765051788,-664.98,0.00018436,2]
[372794750,1752765051798,-460.0,0.00018437,2]
[372794751,1752765051807,-460.0,0.00018437,2]
[372794753,1752765051816,-460.0,0.00018437,2]
[372794755,1752765051826,-487.10523831,0.00018437,2]
[372794756,1752765051835,-460.0,0.00018437,2]
[372794757,1752765051844,-460.0,0.00018437,2]
[372794758,1752765051854,-460.0,0.00018437,2]
[372794759,1752765051863,-4279.38,0.00018437,2]
[372794760,1752765051873,-1326.6,0.00018437,2]
[372794761,1752765051883,-460.0,0.00018437,2]
[372794762,1752765051892,-460.0,0.00018437,2]
[372794763,1752765051903,-460.0,0.00018438,2]
[372794764,1752765051914,-460.0,0.00018438,2]
[372794765,1752765051923,-460.0,0.00018438,2]
[372794766,1752765051933,-460.0,0.00018438,2]
[372794767,1752765051943,-460.0,0.00018438,2]
[372794768,1752765051952,-460.0,0.00018438,2]
[372794769,1752765051963,-460.0,0.00018438,2]
[372794770,1752765051975,-460.0,0.00018438,2]
[372794771,1752765051985,-3110.26,0.00018438,2]
[372794772,1752765051994,-460.0,0.00018438,2]
[372794773,1752765052003,-460.0,0.00018438,2]
[372794774,1752765052014,-495.25,0.00018439,2]
[372794775,1752765052023,-460.0,0.00018439,2]
[372794776,1752765052033,-1328.67,0.00018439,2]
[372794777,1752765052042,-2293.05,0.00018439,2]
[372794778,1752765052053,-460.0,0.00018439,2]
[372794779,1752765052063,-2090.37,0.00018439,2]
[372794780,1752765052073,-522.01,0.00018439,2]
[372794781,1752765052082,-1246.01,0.00018439,2]
[372794782,1752765052092,-460.0,0.0001844,2]
[372794783,1752765052101,-460.0,0.0001844,2]
[372794784,1752765052110,-460.0,0.0001844,2]
[372794785,1752765052120,-460.0,0.0001844,2]
[372794786,1752765052129,-502.25,0.0001844,2]
[372794787,1752765052140,-460.0,0.0001844,2]
[372794788,1752765052149,-460.0,0.0001844,2]
[372794789,1752765052158,-460.0,0.0001844,2]
[372794790,1752765052168,-460.0,0.0001844,2]
[372794791,1752765052178,-460.0,0.0001844,2]
[372794792,1752765052188,-460.0,0.0001844,2]
[372794793,1752765052197,-460.0,0.0001844,2]
[372794794,1752765052208,-460.0,0.0001844,2]
[372794795,1752765052218,-460.0,0.0001844,2]
[372794796,1752765052228,-151.0,0.000185,2]
[372794797,1752765052237,-8833.26437907,0.00018521,2]
[372794798,1752765052247,-151.0,0.000187,2]
[372794799,1752765052257,-460.0,0.0001871,2]
[372794800,1752765052267,-573.18,0.0001871,2]
[372794801,1752765052276,-460.0,0.0001871,2]
[372794802,1752765052286,-460.0,0.0001871,2]
[372794803,1752765052297,-460.0,0.0001871,2]
[372794804,1752765052311,-460.0,0.0001871,2]
[372794805,1752765052320,-3565.14,0.0001871,2]
[372794806,1752765052329,-521.40262785,0.0001871,2]
[372794807,1752765052338,-460.0,0.0001871,2]
[372794808,1752765052348,-460.0,0.0001871,2]
[372794809,1752765052357,-494.71,0.0001871,2]
[372794810,1752765052367,-460.0,0.0001871,2]
[372794811,1752765052376,-460.0,0.0001871,2]
[372794812,1752765052385,-460.0,0.0001871,2]
[372794813,1752765052395,-2523.44,0.0001871,2]
[372794814,1752765052405,-460.0,0.0001871,2]
[372794815,1752765052415,-460.0,0.0001871,2]
[372794816,1752765052424,-1798.7,0.0001871,2]
[372794817,1752765052434,-626.96,0.0001871,2]
[372794818,1752765052443,-460.0,0.0001871,2]
[372794819,1752765052452,-460.0,0.0001871,2]
[372794820,1752765052463,-460.0,0.0001871,2]
[372794821,1752765052472,-460.0,0.0001871,2]
[372794822,1752765052482,-1969.0,0.0001871,2]
[372794823,1752765052491,-487.99,0.0001871,2]
[372794824,1752765052501,-460.0,0.0001871,2]
[372794825,1752765052510,-460.0,0.0001871,2]
[372794827,1752765052520,-155.65650275,0.0001871,2]
[372794829,1752765052529,-460.0,0.0001871,2]
[372794831,1752765052538,-460.0,0.0001871,2]
[372794833,1752765052547,-460.0,0.0001871,2]
[372794835,1752765052557,-496.29,0.0001871,2]
[372794836,1752765052567,-1290.34,0.0001871,2]
[372794838,1752765052576,-460.0,0.0001871,2]
[372794841,1752765052586,-1366.78,0.0001871,2]
[372794843,1752765052598,-460.0,0.0001871,2]
[372794844,1752765052607,-460.0,0.0001871,2]
[372794846,1752765052617,-1222.62,0.0001871,2]
[372794849,1752765052626,-460.0,0.0001871,2]
[372794850,1752765052636,-460.0,0.0001871,2]
[372794852,1752765052646,-460.0,0.0001871,2]
[372794854,1752765052655,-460.0,0.0001871,2]
[372794856,1752765052665,-664.98,0.0001871,2]
[372794858,1752765052675,-460.0,0.00018711,2]
[372794860,1752765052684,-463.69,0.00018711,2]
[372794862,1752765052694,-460.0,0.00018711,2]
[372794863,1752765052703,-460.0,0.00018711,2]
[372794864,1752765052715,-460.0,0.00018711,2]
[372794865,1752765052724,-460.0,0.00018711,2]
[372794866,1752765052734,-4279.38,0.00018711,2]
[372794867,1752765052743,-1326.6,0.00018711,2]
[372794868,1752765052753,-460.0,0.00018711,2]
[372794869,1752765052762,-460.0,0.00018711,2]
[372794870,1752765052771,-460.0,0.00018712,2]
[372794878,1752765052877,-460.0,0.00018712,2]
[372794879,1752765052889,-460.0,0.00018712,2]
[372794880,1752765052899,-460.0,0.00018712,2]
[372794881,1752765052909,-460.0,0.00018712,2]
[372794882,1752765052918,-460.0,0.00018712,2]
[372794883,1752765052928,-460.0,0.00018712,2]
[372794884,1752765052938,-460.0,0.00018712,2]
[372794885,1752765052948,-3110.26,0.00018712,2]
[372794886,1752765052962,-460.0,0.00018712,2]
[372794887,1752765052974,-460.0,0.00018712,2]
[372794888,1752765052984,-495.25,0.00018713,2]
[372794889,1752765052993,-1328.67,0.00018713,2]
[372794890,1752765053002,-2293.05,0.00018713,2]
[372794891,1752765053013,-460.0,0.00018713,2]
[372794892,1752765053023,-2090.37,0.00018713,2]
[372794893,1752765053033,-1246.01,0.00018713,2]
[372794894,1752765053043,-405.99612869,0.00018714,2]
[372794895,1752765053053,-460.0,0.00018714,2]
[372794896,1752765053062,-460.0,0.00018714,2]
[372794897,1752765053072,-460.0,0.00018714,2]
[372794898,1752765053083,-460.0,0.00018714,2]
[372794899,1752765053092,-460.0,0.00018714,2]
[372794900,1752765053101,-460.0,0.00018714,2]
[372794901,1752765053111,-460.0,0.00018714,2]
[372794902,1752765053123,-460.0,0.00018714,2]
[372794903,1752765053135,-542.47277808,0.00018714,2]
[372794904,1752765053147,-460.0,0.00018714,2]
[372794905,1752765053165,-460.0,0.00018714,2]
[372794906,1752765053185,-500.0,0.00018716,2]
[372794907,1752765053194,-522.01,0.00018725,2]
[372794908,1752765053206,-800.0,0.00018769,2]
[372794909,1752765053217,-150.0,0.00018793,2]
[372794910,1752765053228,-8833.26437907,0.00018831,2]
[372794911,1752765053238,-360.0,0.00018886,2]
[372794912,1752765053247,-5768.50413722,0.000189,2]
[372794913,1752765053256,-573.18,0.00018984,2]
[372794914,1752765053266,-460.0,0.00018984,2]
[372794915,1752765053275,-460.0,0.00018984,2]
[372794916,1752765053285,-3565.14,0.00018984,2]
[372794917,1752765053294,-460.0,0.00018984,2]
[372794918,1752765053303,-460.0,0.00018984,2]
[372794919,1752765053313,-494.71,0.00018984,2]
[372794920,1752765053323,-460.0,0.00018984,2]
[372794921,1752765053332,-460.0,0.00018984,2]
[372794922,1752765053341,-2523.44,0.00018984,2]
[372794923,1752765053351,-460.0,0.00018984,2]
[372794924,1752765053360,-1798.7,0.00018984,2]
[372794925,1752765053370,-626.96,0.00018984,2]
[372794926,1752765053379,-460.0,0.00018984,2]
[372794927,1752765053389,-460.0,0.00018984,2]
[372794928,1752765053398,-460.0,0.00018984,2]
[372794929,1752765053408,-460.0,0.00018984,2]
[372794930,1752765053417,-1969.0,0.00018984,2]
[372794931,1752765053427,-487.99,0.00018984,2]
[372794932,1752765053436,-460.0,0.00018984,2]
[372794933,1752765053445,-460.0,0.00018984,2]
[372794934,1752765053457,-460.0,0.00018984,2]
[372794935,1752765053466,-460.0,0.00018984,2]
[372794936,1752765053476,-1290.34,0.00018984,2]
[372794938,1752765053486,-460.0,0.00018984,2]
[372794940,1752765053495,-1366.78,0.00018984,2]
[372794942,1752765053504,-460.0,0.00018984,2]
[372794944,1752765053514,-460.0,0.00018984,2]
[372794946,1752765053523,-1222.62,0.00018984,2]
[372794947,1752765053533,-460.0,0.00018984,2]
[372794948,1752765053542,-460.0,0.00018984,2]
[372794949,1752765053551,-460.0,0.00018984,2]
[372794950,1752765053561,-469.97642883,0.00018985,2]
[372794951,1752765053571,-460.0,0.00018985,2]
[372794952,1752765053580,-4279.38,0.00018985,2]
[372794953,1752765053589,-1326.6,0.00018985,2]
[372794954,1752765053598,-479.47087374,0.00018985,2]
[372794955,1752765053608,-460.0,0.00018985,2]
[372794956,1752765053617,-460.0,0.00018986,2]
[372794957,1752765053627,-460.0,0.00018986,2]
[372794958,1752765053636,-460.0,0.00018986,2]
[372794959,1752765053646,-460.0,0.00018986,2]
[372794960,1752765053657,-460.0,0.00018986,2]
[372794961,1752765053667,-460.0,0.00018986,2]
[372794962,1752765053677,-392.35597529,0.00018986,2]
[372794963,1752765053687,-460.0,0.00018986,2]
[372794964,1752765053697,-3110.26,0.00018986,2]
[372794965,1752765053707,-460.0,0.00018986,2]
[372794966,1752765053718,-460.0,0.00018986,2]
[372794967,1752765053727,-495.25,0.00018987,2]
[372794968,1752765053738,-1328.67,0.00018987,2]
[372794969,1752765053748,-2293.05,0.00018987,2]
[372794970,1752765053758,-460.0,0.00018987,2]
[372794971,1752765053767,-2090.37,0.00018987,2]
[372794972,1752765053777,-1246.01,0.00018987,2]
[372794973,1752765053787,-460.0,0.00018988,2]
[372794974,1752765053796,-460.0,0.00018988,2]
[372794975,1752765053806,-460.0,0.00018988,2]
[372794976,1752765053815,-460.0,0.00018988,2]
[372794977,1752765053825,-460.0,0.00018988,2]
[372794978,1752765053835,-460.0,0.00018988,2]
[372794979,1752765053845,-460.0,0.00018988,2]
[372794980,1752765053854,-522.01,0.00019003,2]
[372794981,1752765053864,-8833.26437907,0.00019141,2]
[372794982,1752765053873,-666.0,0.00019178,2]
[372794983,1752765053883,-495.2433917,0.00019178,2]
[372794984,1752765053892,-847.090611,0.00019178,2]
[372794985,1752765053903,-573.18,0.00019258,2]
[372794986,1752765053912,-460.0,0.00019258,2]
[372794987,1752765053922,-460.0,0.00019258,2]
[372794988,1752765053931,-3565.14,0.00019258,2]
[372794989,1752765053942,-460.0,0.00019258,2]
[372794990,1752765053951,-460.0,0.00019258,2]
[372794991,1752765053967,-494.71,0.00019258,2]
[372794992,1752765053979,-460.0,0.00019258,2]
[372794993,1752765053989,-460.0,0.00019258,2]
[372794994,1752765053999,-2523.44,0.00019258,2]
[372794995,1752765054008,-460.0,0.00019258,2]
[372794996,1752765054018,-151.792969,0.00019258,2]
[372794997,1752765054028,-273.655283,0.00019258,2]
[372794998,1752765054037,-1798.7,0.00019258,2]
[372794999,1752765054048,-626.96,0.00019258,2]
[372795000,1752765054058,-460.0,0.00019258,2]
[372795001,1752765054067,-460.0,0.00019258,2]
[372795002,1752765054076,-460.0,0.00019258,2]
[372795003,1752765054086,-460.0,0.00019258,2]
[372795004,1752765054095,-1969.0,0.00019258,2]
[372795005,1752765054104,-487.99,0.00019258,2]
[372795006,1752765054114,-460.0,0.00019258,2]
[372795007,1752765054123,-460.0,0.00019258,2]
[372795008,1752765054133,-460.0,0.00019258,2]
[372795009,1752765054143,-460.0,0.00019258,2]
[372795010,1752765054152,-1290.34,0.00019258,2]
[372795011,1752765054162,-460.0,0.00019258,2]
[372795012,1752765054172,-1366.78,0.00019258,2]
[372795013,1752765054181,-460.0,0.00019258,2]
[372795014,1752765054191,-460.0,0.00019258,2]
[372795015,1752765054200,-1222.62,0.00019258,2]
[372795017,1752765054214,-460.0,0.00019258,2]
[372795019,1752765054223,-460.0,0.00019258,2]
[372795020,1752765054233,-460.0,0.00019258,2]
[372795021,1752765054242,-460.0,0.00019259,2]
[372795022,1752765054252,-4279.38,0.00019259,2]
[372795023,1752765054261,-1326.6,0.00019259,2]
[372795025,1752765054271,-460.0,0.00019259,2]
[372795027,1752765054279,-360.25136547,0.0001926,2]
[372795029,1752765054289,-460.0,0.0001926,2]
[372795031,1752765054298,-460.0,0.0001926,2]
[372795033,1752765054307,-460.0,0.0001926,2]
[372795034,1752765054317,-460.0,0.0001926,2]
[372795035,1752765054327,-460.0,0.0001926,2]
[372795036,1752765054336,-3110.26,0.0001926,2]
[372795037,1752765054344,-460.0,0.0001926,2]
[372795038,1752765054354,-495.25,0.00019261,2]
[372795039,1752765054364,-1328.67,0.00019261,2]
[372795040,1752765054374,-2293.05,0.00019261,2]
[372795041,1752765054383,-460.0,0.00019261,2]
[372795042,1752765054393,-2090.37,0.00019261,2]
[372795043,1752765054403,-1246.01,0.00019261,2]
[372795044,1752765054412,-460.0,0.00019262,2]
[372795045,1752765054421,-460.0,0.00019262,2]
[372795046,1752765054430,-460.0,0.00019262,2]
[372795047,1752765054440,-460.0,0.00019262,2]
[372795048,1752765054449,-460.0,0.00019262,2]
[372795049,1752765054461,-460.0,0.00019262,2]
[372795052,1752765054471,-460.0,0.00019262,2]
[372795054,1752765054480,-2487.89057565,0.00019296,2]
[372795056,1752765054490,-1607.55226627,0.00019308,2]
[372795057,1752765054499,-100000.0,0.00019329,2]
[372795060,1752765054508,-500.0,0.00019333,2]
[372795061,1752765054517,-500.0,0.00019333,2]
[372795063,1752765054527,-180.0,0.00019337,2]
[372795066,1752765054536,-522.01,0.00019346,2]
[372795067,1752765054545,-5000.0,0.00019346,2]
[372795069,1752765054555,-500.0,0.00019373,2]
[372795071,1752765054564,-501.36560506,0.00019373,2]
[372795073,1752765054574,-500.0,0.00019373,2]
[372795075,1752765054583,-500.0,0.00019373,2]
[372795078,1752765054593,-501.89293347,0.00019373,2]
[372795080,1752765054602,-501.74678868,0.00019373,2]
[372795082,1752765054612,-460.0,0.00019434,2]
[372795083,1752765054621,-184.0,0.00019443,3]
[372795086,1752765054631,-8833.26437907,0.00019452,2]
[372795087,1752765054640,-500.0,0.00019512,2]
[372795089,1752765054650,-573.18,0.00019532,2]
[372795091,1752765054659,-460.0,0.00019532,2]
[372795093,1752765054668,-460.0,0.00019532,2]
[372795096,1752765054678,-3565.14,0.00019532,2]
[372795097,1752765054687,-460.0,0.00019532,2]
[372795100,1752765054697,-460.0,0.00019532,2]
[372795101,1752765054708,-494.71,0.00019532,2]
[372795103,1752765054717,-460.0,0.00019532,2]
[372795105,1752765054727,-574.27,0.00019532,2]
[372795107,1752765054736,-2523.44,0.00019532,2]
[372795109,1752765054745,-1798.7,0.00019532,2]
[372795111,1752765054756,-626.96,0.00019532,2]
[372795113,1752765054765,-460.0,0.00019532,2]
[372795115,1752765054774,-460.0,0.00019532,2]
[372795117,1752765054784,-460.0,0.00019532,2]
[372795120,1752765054794,-1969.0,0.00019532,2]
[372795122,1752765054804,-487.99,0.00019532,2]
[372795123,1752765054813,-214.79,0.00019532,2]
[372795125,1752765054822,-414.78170893,0.00019532,2]
[372795128,1752765054832,-236.96846651,0.00019532,2]
[372795129,1752765054841,-507.94,0.00019532,2]
[372795131,1752765054851,-1290.34,0.00019532,2]
[372795134,1752765054860,-460.0,0.00019532,2]
[372795136,1752765054869,-1366.78,0.00019532,2]
[372795137,1752765054879,-182.38118552,0.00019532,2]
[372795139,1752765054888,-1222.62,0.00019532,2]
[372795141,1752765054897,-460.0,0.00019532,2]
[372795143,1752765054907,-460.0,0.00019532,2]
[372795145,1752765054916,-460.0,0.00019532,2]
[372795147,1752765054925,-460.0,0.00019533,2]
[372795149,1752765054934,-4279.38,0.00019533,2]
[372795151,1752765054943,-1326.6,0.00019533,2]
[372795153,1752765054952,-460.0,0.00019533,2]
[372795155,1752765054964,-460.0,0.00019534,2]
[372795157,1752765054977,-460.0,0.00019534,2]
[372795159,1752765054986,-460.0,0.00019534,2]
[372795171,1752765054997,-460.0,0.00019534,2]
[372795174,1752765055105,-460.0,0.00019534,2]
[372795176,1752765055115,-3110.26,0.00019534,2]
[372795178,1752765055125,-460.0,0.00019534,2]
[372795180,1752765055135,-495.25,0.00019535,2]
[372795182,1752765055146,-1328.67,0.00019535,2]
[372795184,1752765055155,-2293.05,0.00019535,2]
[372795186,1752765055164,-460.0,0.00019535,2]
[372795188,1752765055173,-2090.37,0.00019535,2]
[372795190,1752765055183,-1246.01,0.00019535,2]
[372795192,1752765055192,-460.0,0.00019536,2]
[372795194,1752765055202,-510.05651254,0.00019536,2]
[372795196,1752765055214,-460.0,0.00019536,2]
[372795198,1752765055223,-492.43,0.00019536,2]
[372795200,1752765055232,-460.0,0.00019536,2]
[372795202,1752765055242,-460.0,0.00019536,2]
[372795204,1752765055252,-460.0,0.00019536,2]
[372795206,1752765055261,-1711.44997232,0.00019543,2]
[372795208,1752765055270,-150.0,0.00019576,2]
[372795210,1752765055280,-267.89,0.0001966,2]
[372795212,1752765055289,-243.624583,0.00019721,2]
[372795214,1752765055299,-587.0,0.00019723,2]
[372795216,1752765055309,-500.0,0.00019748,2]
[372795218,1752765055320,-500.0,0.00019748,2]
[372795220,1752765055329,-500.0,0.00019748,2]
[372795222,1752765055338,-500.0,0.00019748,2]
[372795224,1752765055348,-8833.26437907,0.00019762,2]
[372795226,1752765055357,-573.18,0.00019806,2]